fUSD/lending_fUSD_20240519
["ID","MTS","AMOUNT","RATE_DAILY","PERIOD"]
[327466731,1716091832830,-435.0,0.00013,2]
[327466732,1716091832842,-7057.21140862,0.00013,2]
[327466733,1716091832867,-836.74867698,0.00013,2]
[327466734,1716091832880,-418.28200109,0.00013,2]
[327466739,1716091838143,-155.0,9.686e-05,2]
[327466740,1716091838157,-402602.03106894,0.00013,2]
[327466741,1716091838357,-67322.95357659,0.00013,2]
[327466742,1716091839881,-150.0,9.685e-05,2]
[327466745,1716091840174,-465.82012791,9.685e-05,2]
[327466746,1716091840395,-18877.63081151,9.685e-05,2]
[327466747,1716091840405,-411.08934425,0.00013,2]
[327466748,1716091840418,-20209.01442998,0.00013,2]
[327466756,1716091843170,-2818.69897913,0.00013,2]
[327466757,1716091843278,-16751.85427636,0.00013,2]
[327466763,1716091846226,-777.50756563,0.00012999,2]
[327466764,1716091846237,-313.83474584,0.00012999,2]
[327466765,1716091846247,-1183.5276879,0.00013,2]
[327466766,1716091846339,-453.22056435,0.00013,2]
[327466767,1716091855160,-150.0,9.706e-05,2]
[327466768,1716091856780,-150.0,9.706e-05,2]
[327466769,1716091857248,-150.0,9.706e-05,2]
[327466770,1716091858748,-150.0,9.706e-05,2]
[327466771,1716091859335,-150.0,9.706e-05,2]
[327466772,1716091861028,-150.0,9.706e-05,2]
[327466773,1716091861734,-150.0,9.706e-05,2]
[327466774,1716091862147,-150.0,9.706e-05,2]
[327466775,1716092295402,-155.0,9.697e-05,2]
[327466776,1716092295424,-155.0,9.698e-05,2]
[327466777,1716092295445,-2222.04647422,9.699e-05,2]
[327466778,1716092295467,-365.14520212,9.7e-05,2]
[327466779,1716092295488,-150.0,9.705e-05,2]
[327466780,1716092295508,-150.0,9.705e-05,2]
[327466781,1716092295528,-5996.80832366,9.706e-05,2]
[327466786,1716092829241,-525.79941974,9.621e-05,2]
[327466787,1716092829263,-1297.77550926,9.621e-05,2]
[327466788,1716092829283,-500.0,9.622e-05,2]
[327466789,1716092829306,-150.0,9.623e-05,2]
[327466790,1716092829327,-1526.425071,9.624e-05,2]
[327466791,1716092830262,-234.22233037,9.62e-05,2]
[327466792,1716092830285,-155.0,9.62e-05,2]
[327466793,1716092830307,-155.0,9.62e-05,2]
[327466794,1716092830328,-2750.70410332,9.624e-05,2]
[327466795,1716092830349,-705.07356631,9.645e-05,2]
[327466796,1716092830711,-949.39643369,9.645e-05,2]
[327466797,1716092830734,-332.1498527,9.706e-05,2]
[327466798,1716092830757,-2718.45371361,9.706e-05,2]
[327466799,1716092831125,-4000.0,9.706e-05,2]
[327466800,1716092831509,-4000.0,9.706e-05,2]
[327466801,1716092831893,-4000.0,9.706e-05,2]
[327466802,1716092832560,-2256.96705113,9.706e-05,2]
[327466803,1716092832582,-298.37,0.00011135,2]
[327466804,1716092860805,1444.66294887,9.706e-05,2]
[327466805,1716092893204,-299.54382735,0.0001,2]
[327466806,1716092926935,939.36800953,0.00011134,2]
[327466809,1716092947708,2761.08816312,0.0001,2]
[327466810,1716092947729,4000.0,0.0001,2]
[327466811,1716092947751,4000.0,0.0001,2]
[327466812,1716092947771,4000.0,0.0001,2]
[327466813,1716092947793,4000.0,0.0001,2]
[327466814,1716092947814,4000.0,0.0001,2]
[327466816,1716092966734,-150.0,9.356e-05,2]
[327466817,1716092967217,-150.0,9.356e-05,2]
[327466818,1716092972813,-1421.9,9.356e-05,2]
[327466819,1716092972838,-2396.4095958,0.0001,2]
[327466821,1716092993721,181.6904042,9.356e-05,2]
[327466822,1716092993742,4000.0,9.356e-05,2]
[327466823,1716092993763,3818.3095958,9.356e-05,2]
[327466828,1716093032522,-522.24,0.00011146,2]
[327466829,1716093032532,-250.0,0.00011182,2]
[327466830,1716093032542,-155.65,0.00011192,2]
[327466831,1716093032552,-173.62,0.00011206,2]
[327466832,1716093032562,-1940.14688029,0.00011229,2]
[327466833,1716093032574,-795.00263647,0.00011229,2]
[327466834,1716093032586,-482.99531256,0.00011229,2]
[327466835,1716093032620,-255.99517068,0.00011229,2]
[327466836,1716093032631,-1.70209021,0.00011244,2]
[327466837,1716093032643,-1893.14790979,0.00011244,2]
[327466838,1716093032653,-8709.23533159,0.00011261,2]
[327466839,1716093032679,-661.68277074,0.00011261,2]
[327466840,1716093032697,-3523.28117892,0.00011261,2]
[327466841,1716093032715,-1578.55756815,0.00011261,2]
[327466842,1716093032728,-1722.88429448,0.00011261,2]
[327466843,1716093032740,-299.99,0.00011261,2]
[327466860,1716093038581,-7404.36885612,0.00011261,2]
[327466861,1716093038591,-200.0,0.00011294,2]
[327466862,1716093038600,-446.44,0.00011294,2]
[327466863,1716093038609,-155.0,0.00011597,2]
[327466864,1716093038619,-3582.25,0.00011598,2]
[327466865,1716093038627,-1493.37,0.00011598,2]
[327466866,1716093038636,-1721.9,0.0001162,2]
[327466867,1716093038645,-165.27,0.00011661,2]
[327466868,1716093038655,-232.77,0.00011675,2]
[327466869,1716093038665,-593.18,0.00011687,2]
[327466870,1716093038674,-170.52,0.00011708,2]
[327466871,1716093038682,-593.18,0.00011719,2]
[327466872,1716093038691,-477.76,0.00011729,2]
[327466873,1716093038700,-593.18,0.00011751,2]
[327466874,1716093038708,-593.18,0.00011783,2]
[327466875,1716093038717,-593.18,0.00011815,2]
[327466876,1716093038726,-593.18,0.00011847,2]
[327466877,1716093038735,-593.18,0.00011879,2]
[327466878,1716093038744,-593.18,0.00011911,2]
[327466879,1716093038753,-593.18,0.00011943,2]
[327466880,1716093038762,-593.18,0.00011975,2]
[327466881,1716093038771,-593.18,0.00012007,2]
[327466882,1716093038780,-593.18,0.00012039,2]
[327466883,1716093038789,-593.18,0.00012071,2]
[327466884,1716093038799,-593.18,0.00012104,2]
[327466885,1716093038808,-593.18,0.00012136,2]
[327466886,1716093038818,-593.18,0.00012168,2]
[327466887,1716093038828,-593.18,0.000122,2]
[327466888,1716093038837,-593.18,0.00012232,2]
[327466889,1716093038847,-1300.59906691,0.00012249,2]
[327466890,1716093038856,-593.18,0.00012264,2]
[327466891,1716093038866,-180.0,0.00012266,2]
[327466892,1716093038876,-593.18,0.00012296,2]
[327466893,1716093038885,-174.05,0.00012475,2]
[327466894,1716093038894,-522.24,0.0001254,2]
[327466895,1716093038903,-210.5951,0.00012793,2]
[327466897,1716093038912,-256.864,0.00012794,2]
[327466899,1716093038921,-1067.8001,0.00012794,2]
[327466901,1716093038931,-1765.4207,0.00012794,2]
[327466903,1716093038940,-1000.0,0.000128,2]
[327466905,1716093038949,-7500.0,0.000128,2]
[327466907,1716093038958,-1785.3788,0.000128,2]
[327466909,1716093038972,-1598.85772746,0.00012845,2]
[327466911,1716093038981,-1075.30683,0.0001287,2]
[327466913,1716093038991,-12654.37793828,0.00012893,2]
[327466915,1716093039000,-368.83606888,0.00012894,2]
[327466917,1716093039011,-1903.49190791,0.00012894,2]
[327466919,1716093039021,-793.69045832,0.00012894,2]
[327466922,1716093039031,-265.07147825,0.00012894,2]
[327466924,1716093039041,-209.99387941,0.00012894,2]
[327466925,1716093039051,-2327.83056448,0.00012894,2]
[327466928,1716093039062,-234.47101263,0.00012894,2]
[327466930,1716093039072,-178.99324183,0.00012894,2]
[327466932,1716093039082,-201.9538546,0.00012894,2]
[327466934,1716093039092,-587.91310915,0.00012894,2]
[327466936,1716093039102,-2986.90495476,0.00012894,2]
[327466938,1716093039111,-786.78448718,0.00012894,2]
[327466941,1716093039120,-155.27443187,0.00012894,2]
[327466944,1716093039130,-407.24197213,0.00012894,2]
[327466946,1716093039140,-196.39469532,0.00012894,2]
[327466948,1716093039149,-328.36282116,0.00012894,2]
[327466950,1716093039159,-307.25961932,0.00012894,2]
[327466951,1716093039168,-320.96169643,0.00012894,2]
[327466952,1716093039177,-215.67245687,0.00012894,2]
[327466954,1716093039187,-3100.19298571,0.00012894,2]
[327466956,1716093039196,-159.1661096,0.00012894,2]
[327466958,1716093039207,-483.35206378,0.00012894,2]
[327466960,1716093039216,-155.60556443,0.00012894,2]
[327466962,1716093039227,-155.30937043,0.00012894,2]
[327466964,1716093039238,-205.2383185,0.00012894,2]
[327466966,1716093039248,-282.266922,0.00012894,2]
[327466968,1716093039257,-200.0,0.00012895,2]
[327466971,1716093039267,-1000.0,0.00012895,2]
[327466972,1716093039277,-200.0,0.00012895,2]
[327466974,1716093039287,-500.0,0.00012895,2]
[327466976,1716093039296,-1000.0,0.00012895,2]
[327466978,1716093039306,-200.0,0.00012896,2]
[327466980,1716093039316,-1000.0,0.00012896,2]
[327466982,1716093039328,-200.0,0.00012896,2]
[327466984,1716093039337,-500.0,0.00012896,2]
[327466986,1716093039347,-1000.0,0.00012896,2]
[327466988,1716093039358,-1000.0,0.00012896,2]
[327466990,1716093039367,-1000.0,0.00012896,2]
[327466992,1716093039376,-1000.0,0.00012896,2]
[327466994,1716093039386,-1000.0,0.00012896,2]
[327466996,1716093039396,-1000.0,0.00012896,2]
[327466998,1716093039405,-1000.0,0.00012896,2]
[327467000,1716093039415,-1000.0,0.00012896,2]
[327467002,1716093039425,-1000.0,0.00012896,2]
[327467004,1716093039435,-1000.0,0.00012896,2]
[327467006,1716093039445,-1000.0,0.00012896,2]
[327467008,1716093039455,-1000.0,0.00012896,2]
[327467010,1716093039466,-1000.0,0.00012896,2]
[327467012,1716093039477,-1000.0,0.00012896,2]
[327467014,1716093039488,-1000.0,0.00012896,2]
[327467016,1716093039498,-1000.0,0.00012896,2]
[327467018,1716093039508,-1000.0,0.00012896,2]
[327467020,1716093039518,-1000.0,0.00012896,2]
[327467022,1716093039528,-1000.0,0.00012896,2]
[327467024,1716093039538,-1000.0,0.00012896,2]
[327467026,1716093039548,-1000.0,0.00012896,2]
[327467028,1716093039558,-1000.0,0.00012896,2]
[327467030,1716093039568,-1000.0,0.00012896,2]
[327467032,1716093039579,-1000.0,0.00012896,2]
[327467034,1716093039588,-1000.0,0.00012896,2]
[327467036,1716093039598,-1000.0,0.00012896,2]
[327467038,1716093039608,-1000.0,0.00012896,2]
[327467040,1716093039619,-1000.0,0.00012896,2]
[327467042,1716093039628,-1000.0,0.00012896,2]
[327467044,1716093039638,-1000.0,0.00012896,2]
[327467046,1716093039648,-1000.0,0.00012896,2]
[327467048,1716093039658,-1000.0,0.00012896,2]
[327467050,1716093039667,-1000.0,0.00012896,2]
[327467052,1716093039677,-1000.0,0.00012896,2]
[327467054,1716093039687,-1000.0,0.00012896,2]
[327467056,1716093039696,-1000.0,0.00012896,2]
[327467057,1716093039706,-1000.0,0.00012896,2]
[327467060,1716093039716,-1000.0,0.00012896,2]
[327467062,1716093039726,-1014.0,0.00012896,2]
[327467064,1716093039736,-1000.0,0.00012896,2]
[327467065,1716093039745,-1000.0,0.00012896,2]
[327467066,1716093039755,-1000.0,0.00012896,2]
[327467067,1716093039765,-1000.0,0.00012896,2]
[327467068,1716093039775,-1000.0,0.00012896,2]
[327467069,1716093039784,-1000.0,0.00012896,2]
[327467070,1716093039793,-1000.0,0.00012896,2]
[327467071,1716093039803,-1000.0,0.00012896,2]
[327467072,1716093039814,-1000.0,0.00012896,2]
[327467073,1716093039825,-1000.0,0.00012896,2]
[327467074,1716093039835,-1000.0,0.00012896,2]
[327467075,1716093039845,-1000.0,0.00012896,2]
[327467076,1716093039855,-1000.0,0.00012896,2]
[327467077,1716093039864,-1000.0,0.00012896,2]
[327467078,1716093039874,-1000.0,0.00012896,2]
[327467079,1716093039883,-1000.0,0.00012896,2]
[327467080,1716093039893,-1000.0,0.00012896,2]
[327467081,1716093039903,-1000.0,0.00012896,2]
[327467082,1716093039915,-1000.0,0.00012896,2]
[327467083,1716093039925,-1000.0,0.00012896,2]
[327467084,1716093039936,-1000.0,0.00012896,2]
[327467085,1716093039945,-1000.0,0.00012896,2]
[327467086,1716093039955,-1000.0,0.00012896,2]
[327467087,1716093039969,-1000.0,0.00012896,2]
[327467088,1716093039979,-1000.0,0.00012896,2]
[327467089,1716093039988,-1000.0,0.00012896,2]
[327467090,1716093039997,-1000.0,0.00012896,2]
[327467091,1716093040007,-1000.0,0.00012896,2]
[327467092,1716093040016,-1000.0,0.00012896,2]
[327467093,1716093040026,-1000.0,0.00012896,2]
[327467094,1716093040035,-1000.0,0.00012896,2]
[327467095,1716093040046,-1000.0,0.00012896,2]
[327467096,1716093040056,-1000.0,0.00012896,2]
[327467097,1716093040066,-1000.0,0.00012896,2]
[327467098,1716093040076,-1000.0,0.00012896,2]
[327467099,1716093040086,-1010.0,0.00012896,2]
[327467100,1716093040096,-200.0,0.00012896,2]
[327467101,1716093040105,-200.0,0.00012896,2]
[327467102,1716093040115,-1000.0,0.00012896,2]
[327467103,1716093040125,-1000.0,0.00012896,2]
[327467104,1716093040135,-1000.0,0.00012896,2]
[327467105,1716093040145,-1000.0,0.00012896,2]
[327467106,1716093040155,-200.0,0.00012896,2]
[327467107,1716093040165,-200.0,0.00012896,2]
[327467108,1716093040175,-500.0,0.00012896,2]
[327467109,1716093040185,-500.0,0.00012896,2]
[327467110,1716093040195,-500.0,0.00012896,2]
[327467111,1716093040204,-500.0,0.000129,2]
[327467112,1716093040215,-1000.0,0.000129,2]
[327467113,1716093040224,-25659.7722,0.000129,2]
[327467114,1716093040234,-114895.73666441,0.000129,2]
[327467115,1716093040269,-25556.37675398,0.000129,2]
[327467116,1716093041629,-250.0,0.00011374,2]
[327467117,1716093041639,-19.78149993,0.000129,2]
[327467118,1716093041650,-671.52,0.000129,2]
[327467119,1716093041744,-2089.3100448,0.000129,2]
[327467157,1716093043546,-836.60016149,0.000129,2]
[327467158,1716093043663,-6100.0,0.000129,2]
[327467159,1716093043676,-7054.43033884,0.000129,2]
[327467160,1716093043687,-50840.54033655,0.000129,2]
[327467161,1716093043696,-1211.7634,0.000129,2]
[327467162,1716093043705,-94592.5441,0.000129,2]
[327467163,1716093043715,-1021.7617,0.000129,2]
[327467164,1716093043723,-202.98768086,0.000129,2]
[327467165,1716093043732,-179.11476803,0.000129,2]
[327467166,1716093043741,-1432.7661678,0.000129,2]
[327467167,1716093043750,-4103.73818373,0.00012986,2]
[327467168,1716093043759,-201.52154248,0.0001299,2]
[327467169,1716093043768,-155.07982895,0.00012992,2]
[327467170,1716093043779,-35110.80760733,0.00012993,2]
[327467171,1716093043788,-451.14543325,0.00012993,2]
[327467172,1716093043797,-697.9686408,0.00012995,2]
[327467173,1716093043807,-1618.2332873,0.00012995,2]
[327467174,1716093043816,-3363.0239469,0.00012995,2]
[327467175,1716093043826,-4740.8727,0.00012998,2]
[327467176,1716093043835,-155.32521965,0.00012998,2]
[327467177,1716093043844,-655.90132269,0.00012999,2]
[327467178,1716093043853,-4204.25463006,0.00012999,2]
[327467179,1716093043863,-899.0,0.00013,2]
[327467180,1716093043872,-8473.06930566,0.00013,2]
[327467203,1716093044257,-80070.95937417,0.00013,2]
[327467206,1716093044276,-522.85720027,0.00013,2]
[327467209,1716093044294,-2595.4547797,0.00013,2]
[327467231,1716093046365,-630.19475934,0.00013,2]
[327467232,1716093046376,-485.27295591,0.00013,2]
[327467233,1716093046430,-744.912,0.00013,2]
[327467234,1716093046495,-515.25,0.00013,2]
[327467235,1716093077363,181.6904042,8.888e-05,2]
[327467236,1716093077383,774.02705614,8.888e-05,2]
[327467237,1716093079744,3225.97294386,9.356e-05,2]
[327467238,1716093079766,4000.0,9.356e-05,2]
[327467239,1716093079786,4000.0,9.356e-05,2]
[327467240,1716093079807,4000.0,9.356e-05,2]
[327467241,1716093079827,4000.0,9.356e-05,2]
[327467242,1716093079849,581.05736061,9.356e-05,2]
[327467243,1716093095005,300.61916409,8.888e-05,2]
[327467244,1716093097289,955.71746034,8.444e-05,2]
[327467245,1716093119299,955.71746034,8.444e-05,2]
[327467246,1716093127750,1206.88855462,8.888e-05,2]
[327467247,1716093127772,4000.0,8.888e-05,2]
[327467248,1716093127795,4000.0,8.888e-05,2]
[327467249,1716093127817,4000.0,8.888e-05,2]
[327467250,1716093127839,4000.0,8.888e-05,2]
[327467251,1716093127862,4000.0,8.888e-05,2]
[327467252,1716093127883,2675.71356605,8.888e-05,2]
[327467253,1716093135298,955.71746034,8.444e-05,2]
[327467254,1716093153314,368.56897361,8.444e-05,2]
[327467255,1716093153336,587.14848673,8.444e-05,2]
[327467256,1716093171299,429.75894301,8.444e-05,2]
[327467257,1716093216736,377.0,0.0003,90]
[327467258,1716093222269,2983.09257026,8.444e-05,2]
[327467259,1716093222293,4000.0,8.444e-05,2]
[327467260,1716093222318,4000.0,8.444e-05,2]
[327467261,1716093222342,4000.0,8.444e-05,2]
[327467262,1716093222369,46338.30565164,8.444e-05,2]
[327467263,1716093230400,1397.33136429,0.000121,30]
[327467264,1716093245202,150.0,8.444e-05,2]
[327467265,1716093245225,150.0,8.444e-05,2]
[327467266,1716093245246,150.0,8.444e-05,2]
[327467267,1716093245269,150.0,8.444e-05,2]
[327467268,1716093245291,150.0,8.444e-05,2]
[327467269,1716093245313,150.0,8.444e-05,2]
[327467270,1716093245336,150.0,8.444e-05,2]
[327467271,1716093245358,150.0,8.444e-05,2]
[327467272,1716093245379,150.0,8.444e-05,2]
[327467273,1716093245407,150.0,8.444e-05,2]
[327467274,1716093245428,150.0,8.444e-05,2]
[327467275,1716093245450,5867.87605167,8.444e-05,2]
[327467276,1716093257270,150.0,8.444e-05,2]
[327467277,1716093257297,150.0,8.444e-05,2]
[327467278,1716093257324,150.0,8.444e-05,2]
[327467279,1716093257352,150.0,8.444e-05,2]
[327467280,1716093257379,150.0,8.444e-05,2]
[327467281,1716093257408,574.28643395,8.444e-05,2]
[327467282,1716093320344,945.45257497,8.444e-05,2]
[327467283,1716093338386,945.45257497,8.444e-05,2]
[327467284,1716093361120,324.66338889,8.444e-05,2]
[327467285,1716093399780,1784.43146117,8.444e-05,2]
[327467286,1716093399804,2163.58532222,8.444e-05,2]
[327467287,1716093423565,1067.04447863,0.00012,30]
[327467288,1716093434780,-883.32528591,0.00010835,2]
[327467289,1716093434801,-155.0,0.00010835,2]
[327467290,1716093434821,-313.83474584,0.00010836,2]
[327467291,1716093434842,-302.60236657,0.00010837,2]
[327467292,1716093434862,-5273.71009095,0.00010838,2]
[327467293,1716093434883,-150.0,0.00011042,2]
[327467294,1716093434904,-5563.0082214,0.00011043,2]
[327467295,1716093434924,-1650.0,0.00011046,2]
[327467296,1716093434946,-200.0,0.00011637,2]
[327467297,1716093434970,-2766.64,0.00011717,2]
[327467298,1716093434990,-9999.99,0.00011717,2]
[327467299,1716093435010,-603.51,0.00011717,2]
[327467300,1716093435033,-150.99,0.00011717,2]
[327467301,1716093435053,-728.13,0.00011834,2]
[327467302,1716093435077,-150.99,0.00011834,2]
[327467303,1716093435098,-250.0,0.00011946,2]
[327467304,1716093435120,-686.65,0.00011946,2]
[327467305,1716093435141,-2242.68,0.00011984,2]
[327467306,1716093435168,-176.38,0.00012021,2]
[327467307,1716093435189,-19630.90671559,0.00012099,2]
[327467308,1716093435209,-3301.58491764,0.000121,2]
[327467309,1716093435229,-467.77,0.00012109,2]
[327467310,1716093435249,-210.0,0.00012147,2]
[327467311,1716093435270,-1314.60719704,0.00012348,2]
[327467312,1716093435290,-12794.57,0.00012369,2]
[327467313,1716093435311,-252.38036724,0.00012784,2]
[327467314,1716093435333,-10936.93432799,0.00012785,2]
[327467315,1716093435353,-6913.6699,0.00012786,2]
[327467316,1716093435374,-192.2336,0.00012796,2]
[327467317,1716093435395,-1000.0,0.00012796,2]
[327467318,1716093435416,-1000.0,0.000128,2]
[327467319,1716093435438,-7500.0,0.000128,2]
[327467320,1716093435459,-309.35422948,0.00012869,2]
[327467321,1716093435480,-3005.0,0.00012877,2]
[327467322,1716093435501,-1043.57255206,0.00012884,2]
[327467323,1716093435522,-3681.032,0.00012884,2]
[327467324,1716093435543,-3620.423,0.00012886,2]
[327467325,1716093435566,-3624.103,0.00012886,2]
[327467326,1716093435586,-1154.41748229,0.00012886,2]
[327467328,1716093520558,-1896.62,0.00010466,2]
[327467332,1716094014164,1801.78,9.666e-05,2]
[327467333,1716094034435,-313.83474584,0.00010362,2]
[327467334,1716094034459,-2878.21941994,0.00010363,2]
[327467335,1716094034482,-499.42465268,0.00010465,2]
[327467336,1716094034505,-150.0,0.00010465,2]
[327467337,1716094034527,-173.73361699,0.00010466,2]
[327467338,1716094034549,-970.39531171,0.00010466,2]
[327467339,1716094034573,-69.11225284,0.00010466,2]
[327467340,1716094065370,-376.69655341,0.00010366,2]
[327467341,1716094065393,-125.9425231,0.00010466,2]
[327467342,1716094065416,-1448.30134426,0.00010466,2]
[327467343,1716094065439,-702.05957923,0.00010466,2]
[327467344,1716094088319,-150.0,0.00010466,2]
[327467345,1716094092259,604.79824123,7.85e-05,2]
[327467346,1716094148476,173.49313269,7.85e-05,2]
[327467347,1716094152197,970.39531171,7.85e-05,2]
[327467350,1716094162456,172.58461558,7.85e-05,2]
[327467351,1716094172202,340.85983719,7.85e-05,2]
[327467352,1716094179878,6053.0,7.85e-05,2]
[327467369,1716094231792,-4523.872841,0.00011303,2]
[327467370,1716094231803,-313.83474584,0.0001136,2]
[327467371,1716094231813,-549.32,0.00011419,2]
[327467372,1716094231823,-1494.44,0.00011429,2]
[327467373,1716094231832,-173.62,0.00011446,2]
[327467374,1716094231842,-165.27,0.00011464,2]
[327467375,1716094231851,-150.0,0.00011588,2]
[327467376,1716094231861,-200.0,0.00011589,2]
[327467377,1716094231871,-7310.78,0.00011589,2]
[327467378,1716094231881,-250.0,0.00011589,2]
[327467379,1716094231892,-250.0,0.00011592,2]
[327467380,1716094231902,-2127.63,0.00011593,2]
[327467381,1716094231912,-156.15,0.00011706,2]
[327467382,1716094231923,-178.26,0.00011731,2]
[327467383,1716094231933,-450.68,0.00011731,2]
[327467384,1716094231943,-156.15,0.00011757,2]
[327467385,1716094231952,-156.15,0.00011807,2]
[327467386,1716094231963,-499.99,0.00011807,2]
[327467387,1716094231972,-752.59,0.00011836,2]
[327467388,1716094231983,-156.15,0.00011858,2]
[327467389,1716094231993,-156.15,0.00011909,2]
[327467390,1716094232002,-1801.78,0.0001193,2]
[327467391,1716094232012,-156.15,0.0001196,2]
[327467392,1716094232022,-170.52,0.00011963,2]
[327467393,1716094232031,-156.15,0.00012011,2]
[327467394,1716094232041,-156.15,0.00012062,2]
[327467395,1716094232050,-3014.73211358,0.00012106,2]
[327467396,1716094232061,-155.0,0.00012106,2]
[327467397,1716094232070,-161.85608855,0.00012106,2]
[327467398,1716094232079,-882.97639577,0.00012106,2]
[327467399,1716094232089,-1000.0,0.00012106,2]
[327467400,1716094232098,-158.44907478,0.00012107,2]
[327467401,1716094232107,-19706.01,0.00012108,2]
[327467402,1716094232116,-156.15,0.00012112,2]
[327467403,1716094232126,-156.15,0.00012163,2]
[327467404,1716094232135,-156.15,0.00012214,2]
[327467405,1716094232144,-156.15,0.00012265,2]
[327467406,1716094232153,-302.24,0.00012278,2]
[327467407,1716094232162,-156.15,0.00012316,2]
[327467408,1716094232171,-1000.0,0.000126,2]
[327467409,1716094232181,-1000.0,0.000126,2]
[327467410,1716094232190,-1000.0,0.000127,2]
[327467411,1716094232200,-1000.0,0.000127,2]
[327467412,1716094232209,-1000.0,0.000127,2]
[327467413,1716094232218,-1000.0,0.000127,2]
[327467414,1716094232228,-1097.0,0.000127,2]
[327467415,1716094232238,-1040.0,0.000127,2]
[327467416,1716094232247,-180.0,0.00012743,2]
[327467417,1716094232257,-210.0,0.00012747,2]
[327467418,1716094232267,-252.27400888,0.00012756,2]
[327467419,1716094232278,-171.12,0.00012778,2]
[327467420,1716094232295,-549.32,0.00012846,2]
[327467421,1716094232304,-950.67606,0.0001287,2]
[327467422,1716094232315,-3605.545,0.00012878,2]
[327467423,1716094232324,-3440.77651884,0.00012886,2]
[327467424,1716094232335,-3598.38,0.00012894,2]
[327467425,1716094232345,-1000.0,0.00012895,2]
[327467426,1716094232357,-200.0,0.00012895,2]
[327467427,1716094232367,-500.0,0.00012895,2]
[327467428,1716094232377,-500.0,0.00012896,2]
[327467429,1716094232387,-200.0,0.00012896,2]
[327467430,1716094232397,-1000.0,0.00012896,2]
[327467431,1716094232406,-1000.0,0.00012896,2]
[327467432,1716094232416,-200.0,0.00012896,2]
[327467433,1716094232426,-500.0,0.00012896,2]
[327467434,1716094232435,-500.0,0.00012896,2]
[327467435,1716094232444,-3571.0555,0.00012899,2]
[327467436,1716094232454,-2500.0,0.00012899,2]
[327467437,1716094232463,-1313.2022,0.000129,2]
[327467438,1716094232473,-1000.0,0.000129,2]
[327467439,1716094232482,-1000.0,0.000129,2]
[327467440,1716094232492,-1000.0,0.000129,2]
[327467441,1716094232501,-1000.0,0.000129,2]
[327467442,1716094232510,-1000.0,0.000129,2]
[327467443,1716094232520,-1000.0,0.000129,2]
[327467444,1716094232529,-1000.0,0.000129,2]
[327467445,1716094232539,-1000.0,0.000129,2]
[327467446,1716094232549,-1000.0,0.000129,2]
[327467447,1716094232559,-1000.0,0.000129,2]
[327467448,1716094232569,-1000.0,0.000129,2]
[327467449,1716094232579,-1000.0,0.000129,2]
[327467450,1716094232588,-1000.0,0.000129,2]
[327467451,1716094232598,-1000.0,0.000129,2]
[327467452,1716094232608,-1000.0,0.000129,2]
[327467453,1716094232617,-1000.0,0.000129,2]
[327467454,1716094232628,-6570.4629,0.000129,2]
[327467455,1716094232638,-945.1457,0.000129,2]
[327467456,1716094232647,-601.054,0.000129,2]
[327467457,1716094232657,-7500.0,0.000129,2]
[327467458,1716094232667,-171.29139753,0.000129,2]
[327467459,1716094232676,-659.28697815,0.000129,2]
[327467460,1716094232685,-156.41606702,0.000129,2]
[327467461,1716094232695,-201.52154248,0.0001299,2]
[327467462,1716094232704,-266.22124095,0.00012998,2]
[327467463,1716094232713,-155.0,0.00012998,2]
[327467464,1716094232723,-326.61045955,0.00012998,2]
[327467465,1716094232734,-3027.45056754,0.00012998,2]
[327467466,1716094232744,-1247.992726,0.00012998,2]
[327467467,1716094232754,-2221.6315313,0.00012998,2]